[Event "2nd Serbia Open Masters 2022"]
[Site "Novi Sad"]
[Date "2022.06.30"]
[Round "3.49"]
[White "Suleymanli, Aydin"]
[Black "Yordanov, Lachezar"]
[Result "1-0"]
[ECO "D38"]
[WhiteElo "2537"]
[BlackElo "2306"]
[Annotator "TA"]
[PlyCount "51"]
[EventDate "2022.06.28"]
[EventType "swiss"]
[EventCountry "SRB"]
[SourceTitle "playchess.com"]
[Source "ChessBase"]
[SourceQuality "1"]
[TimeControl "40/5400+30:900+30"]

{[%evp 11,51,17,21,13,16,7,12,17,31,23,13,21,12,20,25,19,13,21,13,20,39,12,20,15,38,0,0,0,0,0,0,0,20,-28,0,0,0,-79,351,335,335,325]} 1. Nf3 {[%emt 0:05:13]} Nf6 {[%emt 0:00:11]} 2. c4 {[%emt 0:00:12]} e6 {[%emt 0:00:15]} 3. Nc3 {[%emt 0:01:19]} d5 {[%emt 0:00:53]} 4. d4 {[%emt 0:00:29]} Bb4 {[%emt 0:01:32]} 5. Qa4+ {[%emt 0:00:58]} Nc6 {[%emt 0:00:09]} 6. e3 {[%emt 0:02:17]} O-O {[%emt 0:00:19]} 7. Qc2 {[%emt 0:02:53] D38: Queen's Gambit Declined: Ragozin Defence (4 Nf3 Bb4).} b6 {[%emt 0:03:46]} 8. cxd5 {[%emt 0:07:40] [#]} Qxd5 $146 {[%emt 0:07:39]} ({Much less strong is} 8... Nxd5 9. a3 Bxc3+ 10. bxc3 $14) ({Predecessor:} 8... exd5 9. Bd3 Bg4 10. a3 Bxc3+ 11. Qxc3 Bxf3 12. gxf3 Ne7 13. b3 Rc8 14. Bb2 c5 15. dxc5 bxc5 {1-0 (42) Petrosyan,M (2620)-Pashikian,A (2606) Yerevan 2022}) 9. Bd2 {[%emt 0:02:08] The position is equal.} Bxc3 {[%emt 0:01:11]} 10. bxc3 {[%emt 0:00:13][%cal Bb2c3,Bc3c4][%mdl 32]} e5 {[%emt 0:09:25]} 11. c4 {[%emt 0:01:20]} Qd6 {[%emt 0:03:17][%cal Re5d4]} 12. d5 {[%emt 0:00:55]} e4 $1 {[%emt 0:00:06]} 13. dxc6 {[%emt 0:01:22]} exf3 {[%emt 0:00:08]} 14. gxf3 {[%emt 0:00:02]} Qxc6 {[%emt 0:00:35]} 15. Rg1 {[%emt 0:04:05] Prevents Bg4.} Be6 {[%emt 0:43:11]} ({But not} 15... Qxf3 16. Qb2 Rd8 17. Bc3 $14) 16. Qb2 {[%emt 0:10:51] Black must now prevent Qxf6.} Bf5 {[%emt 0:03:23]} (16... Qxf3 $2 17. Rg3 Qf5 18. Bd3 $1 $18 {[%mdl 512]} (18. Bh3 Qxh3 19. Rxh3 Bxh3 $16)) 17. Bc3 {[%emt 0:01:52] Threatens to win with Bxf6.} Kh8 {[%emt 0:00:06]} 18. O-O-O {[%emt 0:05:31]} Rad8 {[%emt 0:02:04]} 19. Be2 {[%emt 0:00:06]} Bg6 {[%emt 0:00:41]} 20. h4 {[%emt 0:00:55][%cal Bh2h4,Bh4h5][%mdl 32]} Qe6 {[%emt 0:04:18]} 21. f4 {[%emt 0:04:52][%cal Oh4h5] Hoping for h5!} h6 {[%emt 0:01:22] [#]} 22. Be5 {[%emt 0:01:28]} (22. Rd5 $142 $1) 22... Kh7 {[%emt 0:01:15]} 23. Rxd8 {[%emt 0:14:19]} Rxd8 {[%emt 0:00:06]} 24. f3 {[%emt 0:00:02]} (24. Bxc7 $11 {remains equal.} Rc8 25. Be5) 24... Nd7 $2 {[%emt 0:02:46][%mdl 8192] [#]} (24... Nh5 $17 {and life is bright.} 25. e4 Re8) 25. h5 $1 $18 {[%emt 0:00:05]} Nxe5 {[%emt 0:00:05]} 26. Qxe5 {[%emt 0:00:07] Weighted Error Value: White=0.13 (very precise) /Black=0.40} 1-0

[Event "2nd Serbia Open Masters 2022"]
[Site "Novi Sad"]
[Date "2022.06.30"]
[Round "3.50"]
[White "Zanan, Evgeny"]
[Black "Alexiadis, Hristos"]
[Result "1-0"]
[ECO "A06"]
[WhiteElo "2534"]
[BlackElo "2291"]
[Annotator "TA"]
[PlyCount "79"]
[EventDate "2022.06.28"]
[EventType "swiss"]
[EventCountry "SRB"]
[SourceTitle "playchess.com"]
[Source "ChessBase"]
[SourceQuality "1"]
[TimeControl "40/5400+30:900+30"]

{[%evp 12,79,22,21,38,37,53,56,56,56,62,62,66,66,66,64,74,66,64,70,92,70,65,37,46,40,46,33,32,28,40,38,90,90,91,91,98,95,102,102,94,67,70,70,422,423,420,422,422,418,407,407,388,385,12850,29946,12847,29945,12592,29937,2354,6959,6803,6930,6400,5847,1984,1675,5643,5293]} 1. d4 {[%emt 0:08:45]} d5 {[%emt 0:00:19]} 2. Nf3 {[%emt 0:01:08]} Nf6 {[%emt 0:00:07]} 3. c4 {[%emt 0:02:24]} c6 {[%emt 0:00:05]} 4. e3 {[%emt 0:00:22]} e6 {[%emt 0:02:51]} 5. b3 {[%emt 0:00:17]} Nbd7 {[%emt 0:00:38]} 6. Bd3 {[%emt 0:00:14]} Bd6 {[%emt 0:05:52]} 7. Bb2 {[%emt 0:00:20]} Qe7 {[%emt 0:01:18] A06: Réti Opening: 1 Nf3 d5.} 8. Ne5 {[%emt 0:03:37]} Bb4+ {[%emt 0:21:26]} 9. Nd2 {[%emt 0:02:03]} Ne4 {[%emt 0:18:24] White is slightly better.} 10. Bxe4 {[%emt 0:02:53]} Nxe5 {[%emt 0:00:04]} 11. dxe5 {[%emt 0:00:25] Strongly threatening Bd3.} dxe4 {[%emt 0:00:03]} 12. O-O {[%emt 0:00:39]} Bxd2 {[%emt 0:00:15]} 13. Qxd2 {[%emt 0:00:05]} c5 {[%emt 0:00:16] Inhibits Qd4.} 14. Qc2 {[%emt 0:02:58] White is more active.} Bd7 {[%emt 0:05:22]} 15. Qxe4 {[%emt 0:01:55] [#]} O-O-O $146 {[%emt 0:00:05]} ({Predecessor:} 15... Bc6 16. Qg4 O-O-O 17. f3 g6 18. e4 Rd3 19. h4 h5 20. Qf4 Rhd8 21. Bc1 Qc7 {1-0 (34) Volkov,S (2613)-Karl,H (2148) Ortisei 2013}) 16. Rad1 {[%emt 0:11:29]} Bc6 {[%emt 0:02:00]} 17. Qf4 {[%emt 0:01:31]} g5 {[%emt 0:04:07]} 18. Qg3 {[%emt 0:00:50]} h5 {[%emt 0:00:38]} 19. h3 {[%emt 0:12:22]} Rxd1 {[%emt 0:04:41]} 20. Rxd1 {[%emt 0:01:29]} Rd8 {[%emt 0:00:03]} 21. Rd6 {[%emt 0:01:20][%cal Oe3e4]} h4 {[%emt 0:00:16]} (21... f5 $14) 22. Qg4 $1 $16 {[%emt 0:01:54]} f5 {[%emt 0:00:33] [#]} 23. Qh5 {[%emt 0:13:49]} Kc7 {[%emt 0:02:22]} 24. Qg6 {[%emt 0:03:35]} Rxd6 {[%emt 0:08:01]} 25. exd6+ {[%emt 0:04:05]} Qxd6 {[%emt 0:00:02][%cal Og5g4]} 26. Qxg5 {[%emt 0:01:51][%mdl 4096] Endgame KQB-KQB} Qd1+ {[%emt 0:00:04]} 27. Kh2 {[%emt 0:00:07] And now Qe7+ would win.} Qf1 $2 {[%emt 0:06:23][%mdl 8192] Black cannot hold the game after this.} ({Black should try} 27... Qd6+ $1 $14 28. Qf4 Qxf4+ 29. exf4 Kd6) 28. b4 $18 {[%emt 0:02:08]} ({Weaker is} 28. f3 Qe1 29. Qf4+ Kb6 $18) 28... cxb4 {[%emt 0:03:43] [#]} 29. Qe7+ $1 {[%emt 0:02:18]} Kc8 {[%emt 0:01:43][%csl Gc6][%cal Rf1g2]} (29... Kb6 $2 30. Qxb4+ Ka6 31. Qa3+ Kb6 32. Bd4+ Kc7 33. Qe7+ Kc8 34. Qxe6+ Bd7 35. Qg8+ Kc7 36. Qd5) 30. Qxe6+ {[%emt 0:00:24]} Kc7 {[%emt 0:00:07][%csl Gc6][%cal Rf1g2]} 31. Qe7+ {[%emt 0:00:26]} Kc8 {[%emt 0:00:09][%csl Gc6][%cal Rf1g2]} 32. Qf8+ {[%emt 0:00:19]} Kc7 $2 {[%emt 0:00:48]} (32... Kd7 33. Qf7+ Kc8) 33. Be5+ {[%emt 0:00:28]} Kb6 {[%emt 0:00:04]} 34. Qxb4+ {[%emt 0:00:14]} Ka6 {[%emt 0:00:04]} 35. Qa3+ {[%emt 0:00:47]} Kb6 {[%emt 0:00:06]} 36. Bd4+ {[%emt 0:00:27] White is clearly winning.} Kc7 {[%emt 0:00:06]} 37. Qe7+ {[%emt 0:00:23]} Kc8 {[%emt 0:00:05]} 38. Qf8+ {[%emt 0:00:21]} Kc7 {[%emt 0:00:20]} 39. Qg7+ {[%emt 0:01:26]} Kc8 {[%emt 0:00:08]} 40. Be5 {[%emt 0:00:00] Weighted Error Value: White=0.03 (flawless) /Black=0.28 (precise)} 1-0

[Event "2nd Serbia Open Masters 2022"]
[Site "Novi Sad"]
[Date "2022.06.30"]
[Round "3.51"]
[White "Omorjan, Dejan"]
[Black "Budisavljevic, Luka"]
[Result "0-1"]
[ECO "A75"]
[WhiteElo "2339"]
[BlackElo "2507"]
[Annotator "TA"]
[PlyCount "74"]
[EventDate "2022.06.28"]
[EventType "swiss"]
[EventCountry "SRB"]
[SourceTitle "playchess.com"]
[Source "ChessBase"]
[SourceQuality "1"]
[TimeControl "40/5400+30:900+30"]

{[%evp 25,74,28,44,-1,6,-27,-28,-27,-40,-58,-62,-50,-31,-16,-14,-25,-10,-27,64,-28,-24,-58,-68,-52,-51,-62,-43,-41,-62,-54,-60,-78,-77,-56,-7,-104,0,0,0,0,0,-80,-69,-608,-529,-5736,-5720,-29987,-29988,-29998,-29998]} 1. d4 {[%emt 1:31:00]} e6 {[%emt 1:31:00]} 2. c4 c5 {[%emt 0:00:30]} 3. d5 {[%emt 0:01:00]} exd5 {[%emt 0:00:30]} 4. cxd5 {[%emt 0:00:30]} d6 {[%emt 0:00:30]} 5. Nc3 {[%emt 0:00:30]} g6 {[%emt 0:00:30]} 6. Nf3 {[%emt 0:00:30]} Bg7 {[%emt 0:00:30]} 7. e4 {[%emt 0:00:30]} a6 {[%emt 0:00:30]} 8. a4 {[%emt 0:00:30]} Bg4 {[%emt 0:00:30]} 9. Be2 {[%emt 0:00:30]} Bxf3 {[%emt 0:00:30]} 10. Bxf3 {[%emt 0:00:30]} Nd7 {[%emt 0:00:30]} 11. Qc2 {[%emt 0:00:30]} Ngf6 {[%emt 0:00:30]} 12. O-O {[%emt 0:00:30]} O-O {[%emt 0:00:30]} 13. Bf4 {[%emt 0:00:30]} Qe7 {[%emt 0:00:30] [#]} 14. Nb1 $146 {[%emt 0:00:30] A75: Modern Benoni: Classical: 9...a6 10 a4 Bg4.} ({Predecessor:} 14. Rfe1 Rfe8 15. h3 h5 16. Be2 Nh7 17. Bd3 Rac8 18. a5 Bd4 19. Ne2 Qf6 20. Nxd4 Qxf4 21. Nf3 Ng5 22. Nxg5 Qxg5 23. Qc1 {½-½ (52) Mecking,H (2549)-Leitao,R (2586) Sao Paulo 2005}) 14... b5 {[%emt 0:00:30]} 15. Na3 {[%emt 0:00:30]} Rab8 {[%emt 0:00:30]} 16. axb5 {[%emt 0:00:30] Black has an edge.} axb5 {[%emt 0:00:30]} 17. Qe2 {[%emt 0:00:30]} c4 {[%emt 0:00:30]} 18. Nc2 {[%emt 0:00:30]} Ne5 {[%emt 0:00:30]} 19. Nb4 {[%emt 0:00:30]} Nfd7 {[%emt 0:00:30]} 20. Ra7 $1 {[%emt 0:00:30]} Qf6 {[%emt 0:00:30]} 21. Qe3 {[%emt 0:00:30]} Nxf3+ {[%emt 0:00:30]} (21... Nc5 $11) 22. Qxf3 {[%emt 0:00:30]} (22. gxf3 $14 Nc5 23. Rb1) 22... Nc5 $1 $11 {[%emt 0:00:30]} 23. e5 {[%emt 0:00:30]} dxe5 {[%emt 0:00:30]} 24. Be3 {[%emt 0:00:30]} Qd6 {[%emt 0:00:30] Threatens to win with ...Ra8.} 25. Nc6 {[%emt 0:00:30]} Rbe8 {[%emt 0:00:30]} 26. Bxc5 {[%emt 0:00:30]} Qxc5 {[%emt 0:00:30]} 27. b4 {[%emt 0:00:30]} Qd6 {[%emt 0:00:30]} 28. Rb7 {[%emt 0:00:30]} e4 {[%emt 0:00:30]} 29. Qe3 {[%emt 0:00:30]} f5 {[%emt 0:00:30]} (29... Qxd5 $15 30. Ne7+ Rxe7 $1 31. Rxe7 c3) 30. Qa7 {[%emt 0:00:30]} (30. Qc5 $11 Qxc5 31. bxc5) 30... Be5 {[%emt 0:00:30]} ({Black should play} 30... Bf6 $17 31. Rd7 Qf4 32. Rxh7 c3) 31. Rxh7 {[%emt 0:00:30]} f4 {[%emt 0:00:30][%cal Bf5f4,Bf4f3][%mdl 32]} ({Much less strong is} 31... Ra8 32. Qb7 $16) 32. Rd7 {[%emt 0:00:30]} Qf6 {[%emt 0:00:30]} 33. Nxe5 {[%emt 0:00:30]} (33. Qc5 $11) 33... Rxe5 $17 {[%emt 0:00:30]} 34. Qc5 $2 {[%emt 0:00:30][%mdl 8192] [#] Loses the game.} (34. h3 $15) 34... f3 $1 $19 {[%emt 0:00:30] Hoping for ...fxg2.} 35. Ra1 {[%emt 0:00:30] And now Raa7 would win.} e3 {[%emt 0:00:30] ( -> ...exf2+)} 36. fxe3 {[%emt 0:00:30]} fxg2 {[%emt 0:00:30][%mdl 64] Remove Defender} 37. Kxg2 {[%emt 0:00:30]} Rg5+ {[%emt 0:00:30] Weighted Error Value: White=0.89/Black=0.12 (very precise)} 0-1

[Event "2nd Serbia Open Masters 2022"]
[Site "Novi Sad"]
[Date "2022.06.30"]
[Round "3.52"]
[White "Ferreira, Jorge Viterbo"]
[Black "Culum, Sanjin"]
[Result "1/2-1/2"]
[ECO "D02"]
[WhiteElo "2512"]
[BlackElo "2287"]
[Annotator "TA"]
[PlyCount "70"]
[EventDate "2022.06.28"]
[EventType "swiss"]
[EventCountry "SRB"]
[SourceTitle "playchess.com"]
[Source "ChessBase"]
[SourceQuality "1"]
[TimeControl "40/5400+30:900+30"]

{[%evp 9,70,9,8,7,14,14,18,22,18,23,38,25,46,47,47,47,54,45,62,63,72,51,45,41,71,40,27,0,0,2,9,0,23,33,30,22,41,24,31,-37,-45,-44,-11,-16,-11,-18,0,-20,-8,-53,0,0,0,0,0,0,0,0,0,0,0,0,0]} 1. d4 {[%emt 0:00:02]} Nf6 {[%emt 0:00:09]} 2. Bf4 {[%emt 0:00:10]} e6 {[%emt 0:00:57]} 3. e3 {[%emt 0:00:16]} d5 {[%emt 0:01:14]} 4. Nf3 {[%emt 0:00:11]} Bd6 {[%emt 0:00:44]} 5. Nbd2 {[%emt 0:00:13]} O-O {[%emt 0:02:06]} 6. Bd3 {[%emt 0:00:07] D02: 1 d4 d5 2 Nf3 sidelines, including 2...Nf6 3 g3 and 2...Nf6 3 Bf4.} c5 {[%emt 0:02:51]} 7. dxc5 {[%emt 0:00:10]} Bxf4 {[%emt 0:06:47]} 8. exf4 {[%emt 0:00:07]} Qc7 {[%emt 0:00:14]} 9. g3 {[%emt 0:00:09]} Qxc5 {[%emt 0:00:44]} 10. c3 {[%emt 0:00:51]} Nc6 {[%emt 0:03:55]} 11. O-O {[%emt 0:00:22]} Re8 {[%emt 0:01:22]} 12. Ne5 {[%emt 0:05:08] [#]} h6 $146 {[%emt 0:02:41]} ({Predecessor:} 12... Nxe5 13. fxe5 Nd7 14. Qe2 Qb6 15. Nf3 h6 16. Rae1 Nc5 17. Bb1 Bd7 18. Nd4 a6 {1-0 (44) Hamitevici,V (2519)-Makolli,P (2333) Heraklion 2017}) 13. Re1 {[%emt 0:05:01]} Qe7 {[%emt 0:12:08]} 14. Ndf3 {[%emt 0:04:41] White is much more active. The black rooks are badly placed.} Bd7 {[%emt 0:03:43]} 15. g4 {[%emt 0:13:06]} Rad8 {[%emt 0:30:29]} 16. Qe2 {[%emt 0:01:51]} Rf8 {[%emt 0:06:13]} 17. h4 {[%emt 0:14:01]} d4 {[%emt 0:04:37]} 18. Nxc6 {[%emt 0:11:03]} Bxc6 {[%emt 0:00:22]} 19. Nxd4 {[%emt 0:00:41] aiming for g5.} Nd5 {[%emt 0:01:52][%csl LRf4,LRh4]} 20. Qe4 {[%emt 0:05:10][%csl Gd3][%cal Re4h7] [#]} (20. Nxc6 bxc6 21. Qf3 (21. Qe4 f5 $15) 21... Qxh4 $15) 20... Nf6 {[%emt 0:00:49] Against Qh7+} (20... g6 $5 {[%cal Re7h4]} 21. g5 (21. Nxc6 bxc6 22. g5 Qc7 $11) 21... Qd6 22. Nxc6 (22. gxh6 $2 Nxc3 23. Qe3 Qxd4 $19) 22... bxc6 $11) 21. Qe3 {[%emt 0:02:45] g5 is the strong threat.} ({But not} 21. Nxc6 bxc6 22. Qf3 {[#]} Nxg4 $1 $15) 21... Nxg4 {[%emt 0:06:45]} 22. Qg3 {[%emt 0:00:06]} h5 {[%emt 0:00:37]} 23. f3 {[%emt 0:03:35]} Nh6 {[%emt 0:02:29][%cal Od8d4]} ({Not} 23... Bxf3 24. Qxf3 Qxh4 25. Re2 $18) 24. Qg5 {[%emt 0:08:43]} (24. Re5 $14) 24... Qc7 $15 {[%emt 0:03:01]} 25. Qg3 {[%emt 0:13:15]} Qb6 {[%emt 0:06:11] Strongly threatening ...Rxd4.} (25... Rxd4 $5 26. cxd4 Qd6 $11) 26. Qf2 {[%emt 0:00:06]} Rd7 {[%emt 0:00:00]} 27. Re5 {[%emt 0:00:59]} Rd5 {[%emt 0:00:00]} 28. Rae1 {[%emt 0:00:35]} Rfd8 {[%emt 0:00:00]} 29. Rg5 {[%emt 0:03:29]} Qc7 {[%emt 0:00:49]} (29... Rxd4 $15 30. cxd4 Rxd4) 30. Qg3 {[%emt 0:01:36] The position is equal.} Rxg5 {[%emt 0:00:51]} 31. hxg5 {[%emt 0:00:10]} Nf5 {[%emt 0:00:33]} 32. Bxf5 {[%emt 0:00:25]} exf5 {[%emt 0:00:05]} 33. g6 {[%emt 0:02:08]} fxg6 {[%emt 0:00:28]} 34. Qxg6 {[%emt 0:00:10]} Rxd4 {[%emt 0:00:06]} 35. Re8+ {[%emt 0:06:01]} Bxe8 {[%emt 0:00:06] Weighted Error Value: White=0.11 (very precise) /Black=0.09 (flawless)} 1/2-1/2

[Event "2nd Serbia Open Masters 2022"]
[Site "Novi Sad"]
[Date "2022.07.01"]
[Round "4.1"]
[White "Jumabayev, Rinat"]
[Black "Sanal, Vahap"]
[Result "1/2-1/2"]
[ECO "A11"]
[WhiteElo "2628"]
[BlackElo "2575"]
[Annotator "TA"]
[PlyCount "163"]
[EventDate "2022.06.28"]
[EventType "swiss"]
[EventCountry "SRB"]
[SourceTitle "playchess.com"]
[Source "ChessBase"]
[SourceQuality "1"]
[TimeControl "40/5400+30:900+30"]

{[%evp 18,163,18,14,18,11,18,14,17,12,26,9,27,12,18,26,63,60,99,87,112,94,95,107,119,123,144,143,136,96,96,126,113,96,96,95,97,93,97,88,95,86,96,91,98,99,94,85,78,85,83,70,84,74,75,75,74,68,68,68,68,69,68,68,68,68,68,60,75,68,75,75,75,60,97,67,75,75,75,60,60,60,67,60,68,68,75,60,75,75,75,75,75,68,68,60,75,60,60,60,60,60,60,60,60,60,68,60,60,60,60,60,60,60,60,60,60,60,75,75,75,60,60,60,60,60,75,60,68,60,75,60,60,60,75,67,75,75,78,16,16,16,16,16,22,8,22,22]} 1. Nf3 {[%emt 0:00:04]} d5 {[%emt 0:00:48]} 2. g3 {[%emt 0:00:08]} g6 {[%emt 0:02:31]} 3. Bg2 {[%emt 0:01:13]} Bg7 {[%emt 0:00:11]} 4. O-O {[%emt 0:00:10]} Nf6 {[%emt 0:01:37]} 5. c4 {[%emt 0:01:19]} c6 {[%emt 0:00:10]} 6. b3 {[%emt 0:00:07]} O-O {[%emt 0:01:22]} 7. Bb2 {[%emt 0:00:41]} Bg4 {[%emt 0:00:55]} 8. d3 {[%emt 0:02:00]} Nbd7 {[%emt 0:02:36]} 9. Nbd2 {[%emt 0:02:22]} Re8 {[%emt 0:03:12]} 10. h3 {[%emt 0:02:08]} Bxf3 {[%emt 0:00:10] A11: English Opening: 1...c6.} 11. Nxf3 {[%emt 0:00:04]} e5 {[%emt 0:02:39]} 12. cxd5 {[%emt 0:00:26]} cxd5 {[%emt 0:05:22]} 13. e3 {[%emt 0:01:05]} Qb6 {[%emt 0:01:15]} 14. Rc1 {[%emt 0:15:17]} Rad8 {[%emt 0:07:01] [#]} 15. Qc2 $146 {[%emt 0:03:09]} ({Predecessor:} 15. Rc2 Qa6 16. a3 h6 17. b4 Nh7 18. Qc1 Nb6 19. Rd1 Na4 20. d4 e4 21. Bf1 Qe6 22. Ne5 Nxb2 23. Qxb2 Bxe5 24. dxe5 Ng5 25. Rc7 Rd7 {½-½ (25) Dizdarevic,E (2492)-Jakovljevic,V (2375) Bihac 2016}) 15... Qa6 {[%emt 0:08:51]} 16. a3 {[%emt 0:24:40]} e4 {[%emt 0:11:41]} 17. dxe4 {[%emt 0:00:37]} dxe4 {[%emt 0:01:13]} 18. Nd2 {[%emt 0:00:14]} b5 {[%emt 0:05:47]} 19. Qc6 {[%emt 0:10:28]} Qxc6 {[%emt 0:04:39]} 20. Rxc6 {[%emt 0:00:06]} Ne5 {[%emt 0:04:09]} 21. Rc2 {[%emt 0:00:36]} Rd3 {[%emt 0:00:51]} 22. Rfc1 {[%emt 0:08:27]} (22. Nxe4 $6 Nxe4 23. Bxe4 Rxb3 $11) 22... h5 {[%emt 0:02:34]} 23. Rc8 {[%emt 0:12:10] [#] Threatens to win with Bxe5.} Nc4 {[%emt 0:16:31]} 24. Rxe8+ {[%emt 0:03:55]} Nxe8 {[%emt 0:00:20]} 25. bxc4 {[%emt 0:05:07]} Bxb2 {[%emt 0:01:00]} 26. Rc2 {[%emt 0:00:07]} bxc4 {[%emt 0:09:35][%cal Oe8d6]} 27. Bxe4 {[%emt 0:01:46]} ({Don't blunder} 27. Rxb2 $2 c3 28. Rb1 c2 29. Bxe4 Rxd2 30. Bxc2 Rxc2 $19) 27... Rd8 {[%emt 0:00:18]} 28. Nxc4 {[%emt 0:00:17]} ({But not} 28. Rxb2 $6 c3 29. Rb1 cxd2 $11) 28... Bf6 {[%emt 0:00:06]} 29. Na5 {[%emt 0:01:11]} Rd1+ {[%emt 0:02:32]} 30. Kg2 {[%emt 0:00:02]} Kg7 {[%emt 0:00:15]} 31. Nc6 {[%emt 0:03:11]} Ra1 {[%emt 0:00:40]} 32. Nxa7 {[%emt 0:01:47]} Nd6 {[%emt 0:00:07]} 33. Bd5 {[%emt 0:00:34][%cal Oa3a4]} Rxa3 {[%emt 0:00:16]} 34. Rc7 {[%emt 0:00:46] [#] Black must now prevent Rd7.} Rd3 $1 {[%emt 0:01:59]} 35. Bf3 {[%emt 0:00:44]} Rd2 {[%emt 0:00:50]} 36. Kf1 {[%emt 0:00:19]} Bd8 {[%emt 0:01:34]} 37. Rd7 {[%emt 0:00:40]} Ne4 {[%emt 0:02:08]} 38. Rxd2 {[%emt 0:00:19]} Nxd2+ $14 {[%emt 0:00:02][%mdl 4096] Endgame KBN-KBN} 39. Ke2 {[%emt 0:00:01]} Nb3 {[%emt 0:00:41]} 40. Bd5 {[%emt 0:00:00] aiming for Nc6.} Nc5 $1 {[%emt 0:00:00]} 41. Nc6 {[%emt 0:00:20]} Bc7 {[%emt 0:01:05]} 42. f4 {[%emt 0:04:09]} Nd7 {[%emt 0:00:58]} 43. Kf3 {[%emt 0:00:25]} f5 {[%emt 0:02:11]} 44. Nd4 {[%emt 0:03:13] Ne6+ is the strong threat.} Kf6 {[%emt 0:02:41]} 45. Bc6 {[%emt 0:00:15]} Nf8 {[%emt 0:00:40]} 46. Be8 {[%emt 0:00:32]} Bb6 {[%emt 0:01:01]} 47. Nc6 {[%emt 0:00:15] White is more active.} Bc5 {[%emt 0:01:03]} 48. Ke2 {[%emt 0:00:24]} Bd6 {[%emt 0:00:10]} 49. Nd4 {[%emt 0:00:34]} Bb4 {[%emt 0:00:46]} 50. Nf3 {[%emt 0:01:35]} Ke7 {[%emt 0:00:12]} 51. Bb5 {[%emt 0:00:49]} Kf6 {[%emt 0:00:04]} 52. Bc4 {[%emt 0:02:05]} Ba5 {[%emt 0:00:23]} 53. Ng5 {[%emt 0:02:16]} Ke7 {[%emt 0:00:27]} 54. Kf3 {[%emt 0:01:13]} Bb6 {[%emt 0:00:20]} 55. Nf7 {[%emt 0:00:38]} Nd7 {[%emt 0:00:35]} 56. Ba2 {[%emt 0:00:57]} Ba7 {[%emt 0:00:44]} 57. Ke2 {[%emt 0:00:37]} Bb8 {[%emt 0:00:16]} 58. Ng5 {[%emt 0:00:09]} Bc7 {[%emt 0:00:57]} 59. Nf3 {[%emt 0:00:36]} Kf6 {[%emt 0:00:28]} 60. Bd5 {[%emt 0:00:42]} Bb6 {[%emt 0:00:28]} 61. Bc6 {[%emt 0:00:18]} Nf8 {[%emt 0:00:15]} 62. Kd3 {[%emt 0:00:16]} Bc7 {[%emt 0:01:01]} 63. Nd4 {[%emt 0:01:02]} Ba5 {[%emt 0:00:25]} 64. Ke2 {[%emt 0:00:43]} Ne6 {[%emt 0:00:15]} 65. Nb5 {[%emt 0:00:29]} Ke7 {[%emt 0:00:42]} 66. Kf3 {[%emt 0:05:41]} Bb6 {[%emt 0:03:03]} 67. Nc3 {[%emt 0:00:00]} Nc7 {[%emt 0:00:18]} 68. Nd1 {[%emt 0:00:00]} Kf6 {[%emt 0:00:43]} 69. Nb2 {[%emt 0:00:00]} Ne6 {[%emt 0:02:42]} 70. Nc4 {[%emt 0:00:00]} Bc7 {[%emt 0:00:21]} 71. Bd5 {[%emt 0:00:00]} Nf8 {[%emt 0:00:26]} 72. Bb7 {[%emt 0:00:00]} Nd7 {[%emt 0:00:23]} 73. Bc6 {[%emt 0:00:00]} Nb6 {[%emt 0:01:25]} 74. Nb2 {[%emt 0:00:00]} Nc8 {[%emt 0:00:15]} 75. Nd3 {[%emt 0:00:28]} Ne7 {[%emt 0:01:29]} 76. Be8 {[%emt 0:00:35]} Bd6 {[%emt 0:00:24]} 77. Nf2 {[%emt 0:00:38]} Bc7 {[%emt 0:00:45]} 78. g4 {[%emt 0:00:35]} (78. Ba4 $16) 78... hxg4+ $1 $11 {[%emt 0:00:20] The position is equal.} 79. hxg4 {[%emt 0:00:04]} g5 $1 {[%emt 0:01:37]} 80. e4 {[%emt 0:01:34]} Bxf4 {[%emt 0:00:43]} 81. gxf5 {[%emt 0:00:13]} Nxf5 {[%emt 0:00:42]} 82. exf5 {[%emt 0:00:17] Black defended with fortune.  Weighted Error Value: White=0.05 (flawless) /Black=0.06 (flawless)} 1/2-1/2